[Event "26th Hit Open-A 2022"]
[Site "Nova Gorica"]
[Date "2022.09.19"]
[Round "6.8"]
[White "Manish Anto Cristiano F"]
[Black "Holtel, Jasper"]
[Result "1/2-1/2"]
[ECO "B99"]
[WhiteElo "2249"]
[BlackElo "2406"]
[Annotator "TA"]
[PlyCount "77"]
[EventDate "2022.09.16"]
[EventType "swiss"]
[EventCountry "SLO"]
[SourceTitle "playchess.com"]
[Source "ChessBase"]
[SourceQuality "1"]
[TimeControl "5400+30"]

{[%evp 22,77,50,52,58,39,33,56,56,16,18,0,0,0,0,0,0,22,20,13,10,14,11,19,14,0,0,0,0,0,0,0,95,95,80,103,95,127,93,95,164,179,199,0,0,0,95,0,0,0,0,0,0,0,0,0,0,0]} 1. e4 {[%emt 0:00:01]} c5 {[%emt 0:01:03]} 2. Nf3 {[%emt 0:00:16]} d6 {[%emt 0:00:06]} 3. d4 {[%emt 0:00:31]} cxd4 {[%emt 0:00:07]} 4. Nxd4 {[%emt 0:00:06]} Nf6 {[%emt 0:00:08]} 5. Nc3 {[%emt 0:00:14]} a6 {[%emt 0:00:07]} 6. Bg5 {[%emt 0:00:28]} e6 {[%emt 0:00:47]} 7. f4 {[%emt 0:00:34]} Be7 {[%emt 0:00:06]} 8. Qf3 {[%emt 0:00:12]} Qc7 {[%emt 0:00:10]} 9. O-O-O {[%emt 0:00:15]} Nbd7 {[%emt 0:00:06]} 10. g4 {[%emt 0:00:49][%cal Bg2g4,Bg4g5][%mdl 32]} h6 {[%emt 0:00:33]} 11. Bxf6 {[%emt 0:00:43]} Bxf6 {[%emt 0:00:11]} 12. h4 {[%emt 0:01:20] CPLX 2.4} Nb6 $1 {[%emt 0:00:17][%mdl 4] CPLX 2.5 6 (Qc7-b6) (=6) is more profitable than 12...Qb6 at the moment. B99: Sicilian Najdorf: 6 Bg5 e6 7 f4 Be7 8 Qf3 Qc7 9 0-0-0 Nbd7.} 13. g5 {[%emt 0:00:42] CPLX 2.5 19 (Bf1-e2) (=10)} Bxd4 {[%emt 0:00:28] CPLX 3.1} 14. Rxd4 {[%emt 0:00:03] RECAPT} Qc5 {[%emt 0:00:19] BESTDEEP. White is slightly better.} 15. Qf2 {[%emt 0:01:44][%cal Oe4e5] CPLX 2.8 40 (Rd4-d2) (=15)} hxg5 {[%emt 0:00:42] CPLX 2.7} 16. e5 {[%emt 0:00:14] MISS-f4xg5 18 (f4xg5) (=15)} gxf4 {[%emt 0:22:51] CPLX 3.2} 17. Bd3 {[%emt 0:00:07] [#] Threatens to win with Ne4. BESTDEEP} d5 $146 {[%emt 0:11:04] Inhibits Ne4. BESTDEEP} ({Predecessor:} 17... f5 18. exf6 e5 19. fxg7 Rg8 20. Bg6+ Ke7 21. h5 Qxd4 22. Qh4+ Kd7 23. h6 Kc6 {1-0 (34) Hong,A (2504)-Brodsky,D (2496) Saint Louis 2022}) 18. Ne4 {[%emt 0:00:20] BESTDEEP} dxe4 {[%emt 0:01:24] BESTDEEP} 19. Rd8+ $1 {[%emt 0:00:07] EASY} Kxd8 {[%emt 0:00:09] EASY} 20. Qxc5 {[%emt 0:00:06] EASY} Nd7 {[%emt 0:00:18] EASY} 21. Qg1 {[%emt 0:00:09] BESTDEEP} exd3 {[%emt 0:02:48] EASY} 22. Qxg7 {[%emt 0:00:09] EASY} Rf8 {[%emt 0:05:05] CPLX 5.6 0 (Rh8-h5) (=1)} 23. h5 {[%emt 0:21:00] Hoping for h6. MISS-Rh1-d1 14 (Rh1-d1) (=8)} b6 {[%emt 0:10:59] CPLX 4.7 0 (b7-b5) (=1)} 24. h6 {[%emt 0:14:16] aiming for h7. BESTDEEP} Bb7 {[%emt 0:00:48] CPLX 5.0} 25. h7 {[%emt 0:05:16] CPLX 5.3} Bxh1 {[%emt 0:07:04] BESTDEEP} 26. h8=Q {[%emt 0:01:43] Dancing on a razor blade. EASY} Bd5 {[%emt 0:02:08] MISS-Rf8xh8 95 (Rf8xh8) (=7)} (26... Rxh8 $11 {remains equal.} 27. Qxh8+ Ke7 28. Qh4+ Ke8 29. Qh8+ Nf8 30. Qxh1 Rc8) 27. Qhxf8+ {[%emt 0:20:03] CPLX 6.8 0 (Qg7xf8) (=6)} Nxf8 {[%emt 0:00:22] RECAPT} 28. Qxf8+ $16 {[%emt 0:00:07][%mdl 4096] Endgame KQ-KRB. RECAPT} Kd7 {[%emt 0:00:53] CPLX 3.3} 29. Qxf7+ {[%emt 0:12:14] EASY} Kc6 {[%emt 0:00:35] [#] EASY} 30. c3 $1 {[%emt 0:03:18] DEEPSTRONG} ({Reject} 30. cxd3 f3 $11) 30... Bxa2 {[%emt 0:05:39] CPLX 3.9 69 (f4-f3) (=9)} (30... f3 $16) 31. Qxf4 $18 {[%emt 0:00:10] And now Qa4+ would win. DEEPSTRONG} b5 {[%emt 0:00:38] [#] Prevents Qa4. CPLX 3.3 20 (Kc6-c7) (=10)} 32. Qf3+ $2 {[%emt 0:02:08] MISSDEEP-Qf4-b4 199 (Qf4-b4) (=14)} ({Only move:} 32. Qb4 $1 $18) 32... Bd5 $11 {[%emt 0:00:10] EASY} 33. Qxd3 {[%emt 0:00:08] CPLX 4.1 0 (Qf3-f7) (=13)} Rh8 {[%emt 0:01:29] RELBLUND 95 (a6-a5) (=13)} (33... a5 $1 $11) 34. Qg3 {[%emt 0:01:26] CPLX 2.9 95 (b2-b4) (=17)} (34. b4 $16) 34... a5 $1 {[%emt 0:02:15] CPLX 2.8=>BLUNDERREACT. The position is equal.} 35. Qf4 {[%emt 0:03:38] CPLX 2.8 0 (b2-b4) (=16)} a4 {[%emt 0:02:34] CPLX 2.8} 36. Kd2 {[%emt 0:00:46] CPLX 3.0 0 (Qf4-f2) (=15)} Bc4 {[%emt 0:00:47]} 37. Qf3+ {[%emt 0:00:30] CPLX 3.1 0 (Kd2-e3) (=15)} Kc7 {[%emt 0:00:56] CPLX 3.0 0 (Bc4-d5) (=11)} 38. Qf7+ {[%emt 0:00:21] CPLX 3.2 0 (Qf3-g2) (=14)} Kc6 {[%emt 0:00:14] CPLX 3.0} 39. Qf3+ {[%emt 0:00:56] Weighted Error Value: White=0.14 (very precise) /Black=0.14 (very precise)} 1/2-1/2

[Event "26th Hit Open-A 2022"]
[Site "Nova Gorica"]
[Date "2022.09.19"]
[Round "6.9"]
[White "Verbin, Valentina"]
[Black "Sonis, Francesco"]
[Result "0-1"]
[ECO "B90"]
[WhiteElo "2049"]
[BlackElo "2542"]
[Annotator "TA"]
[PlyCount "74"]
[EventDate "2022.09.16"]
[EventType "swiss"]
[EventCountry "SLO"]
[SourceTitle "playchess.com"]
[Source "ChessBase"]
[SourceQuality "1"]
[TimeControl "5400+30"]

{[%evp 17,74,18,24,19,33,14,41,31,46,22,40,33,39,28,50,44,56,48,74,78,81,78,91,77,77,0,0,0,0,-23,-41,-118,0,0,0,0,0,0,0,0,8,0,0,8,3,-52,0,-74,-60,-91,-63,-199,-225,-206,-193,-178,-197,-29997,-29998]} 1. e4 {[%emt 0:03:04]} c5 {[%emt 0:00:10]} 2. Nf3 {[%emt 0:00:36]} d6 {[%emt 0:00:16]} 3. d4 {[%emt 0:00:32]} cxd4 {[%emt 0:00:10]} 4. Nxd4 {[%emt 0:00:12]} Nf6 {[%emt 0:00:11]} 5. Nc3 {[%emt 0:00:28]} a6 {[%emt 0:00:07]} 6. Be3 {[%emt 0:00:54]} e5 {[%emt 0:01:50]} 7. Nb3 {[%emt 0:00:42]} Be7 {[%emt 0:00:25]} 8. f3 {[%emt 0:00:33]} Be6 {[%emt 0:00:15]} 9. Qd2 {[%emt 0:00:46]} h5 {[%emt 0:00:23] CPLX 2.3 6 (0-0) (=6)} 10. Nd5 {[%emt 0:01:08] CPLX 2.3 5 (Bf1-e2) (=5). B90: Sicilian Najdorf: Unusual White 6th moves, 6 Be3 Ng4 and 6 Be3 e5.} Bxd5 {[%emt 0:05:47] CPLX 2.6 14 (Nf6xd5) (=10)} 11. exd5 {[%emt 0:00:08] RECAPT} Qc7 {[%emt 0:00:05] MISS-Nb8-d7 27 (Nb8-d7) (=16)} 12. c4 {[%emt 0:03:37] BESTDEEP. White is slightly better.} O-O {[%emt 0:00:56] CPLX 2.2 15 (a6-a5) (=16)} 13. Be2 {[%emt 0:03:25] CPLX 2.1 24 (Bf1-d3) (=7)} a5 {[%emt 0:02:02] BESTDEEP} 14. Rc1 {[%emt 0:03:47] CPLX 2.3 7 (Ra1-d1) (=7)} Nbd7 {[%emt 0:00:20] BESTDEEP} 15. O-O {[%emt 0:02:14] CPLX 2.3} a4 {[%emt 0:07:22] CPLX 2.4 22 (g7-g6) (=12)} 16. Na1 {[%emt 0:00:06][%cal Bb3a1,Ba1c2,Bc2a3,Ba3b5][%mdl 32] EASY} Nc5 {[%emt 0:00:19] CPLX 2.3 12 (Qc7-a5) (=12)} 17. Nc2 {[%emt 0:02:51] EASY} h4 {[%emt 0:06:05] CPLX 2.4 26 (Qc7-a5) (=14)} 18. Na3 {[%emt 0:05:30] [#] BESTDEEP} Nh5 $146 {[%emt 0:01:43] CPLX 2.5 3 (Qc7-a5) (=13)} ({Predecessor:} 18... h3 19. g3 Nfd7 20. Nb5 Qd8 21. f4 f5 22. fxe5 Nxe5 23. Bxc5 dxc5 24. d6 Bg5 {0-1 (52) Khanin,S (2511)-Wang,J (2123) Chess.com INT 2020}) 19. Nb5 {[%emt 0:05:02] EASY} Qd8 {[%emt 0:00:08] CPLX 3.0 13 (Qc7-a5) (=13)} 20. Rb1 {[%emt 0:08:06] CPLX 2.8 14 (Be2-d1) (=5)} Nf4 {[%emt 0:13:50] BESTDEEP} 21. Bxf4 {[%emt 0:04:31] CPLX 3.3 77 (g2-g3) (=11)} (21. g3 $16 Nxe2+ 22. Qxe2) 21... exf4 $11 {[%emt 0:00:04] RECAPT} 22. Qxf4 {[%emt 0:01:31] CPLX 2.4 0 (Rf1-e1) (=10)} Re8 {[%emt 0:00:15] CPLX 2.6} 23. Bd1 {[%emt 0:08:20] CPLX 2.7 23 (Qf4-f5) (=11)} Bg5 $1 {[%emt 0:18:45] CPLX 2.7} 24. Qxd6 {[%emt 0:04:32] [#] MISSDEEP-Qf4-g4 77 (Qf4-g4) (=15)} (24. Qg4 $1 $15) 24... Be3+ {[%emt 0:00:05] MISSDEEP-Qd8-a5 118 (Qd8-a5) (=16)} (24... Qa5 $1 $17 {[%cal Ra5d2]} 25. Kh1 (25. f4 Ne4) 25... Qb4) 25. Kh1 {[%emt 0:00:04] EASY} Qg5 {[%emt 0:00:04] BESTDEEP} 26. Bc2 {[%emt 0:12:24] Prevents Nd3. Threatens to win with f4. CPLX 3.8} Rad8 {[%emt 0:04:41] CPLX 4.4} 27. Qc7 {[%emt 0:03:41] Strongly threatening Rbe1. CPLX 4.8 0 (f3-f4) (=13)} Bf4 {[%emt 0:05:09] BESTDEEP} 28. Qxc5 {[%emt 0:08:30] CPLX 5.8} Re2 $132 {[%emt 0:00:05][%csl Ge2,LRc2,LRg2][%cal Rg5g2][%mdl 2048] Black is not keeping still. CPLX 4.5} 29. Rf2 {[%emt 0:04:52] EASY} Be3 {[%emt 0:00:13] EASY} 30. Rxe2 {[%emt 0:00:37] CPLX 5.2} Bxc5 {[%emt 0:00:04] EASY} 31. Rbe1 {[%emt 0:01:14] RELBLUND 55 (h2-h3) (=13)} ({Better is} 31. h3 $11) 31... g6 {[%emt 0:00:18] CPLX 4.1 52 (Qg5-f4) (=13)} (31... Qf4 $1 $15) 32. Bxa4 {[%emt 0:01:32] [#] RELBLUND 74 (h2-h3) (=15)} (32. h3 $11) 32... h3 $1 $17 {[%emt 0:00:20] CPLX 4.0} 33. Bc2 {[%emt 0:03:20] CPLX 4.4 31 (Ba4-d1) (=16)} Qh4 {[%emt 0:01:57] And now ...hxg2+ would win. MISS-Qg5-f4 28 (Qg5-f4) (=13)} 34. Be4 {[%emt 0:02:30] This costs White the game. MISS-g2-g4 136 (g2-g4) (=21)} (34. g4 $15) 34... hxg2+ $19 {[%emt 0:00:19] EASY} 35. Kxg2 {[%emt 0:00:08] RECAPT} Kg7 {[%emt 0:00:04] ...Rh8 is the strong threat. Chess con chili. BESTDEEP} 36. Kh1 {[%emt 0:04:30] [#] EASY} Rh8 $1 {[%emt 0:00:18][%mdl 1024] ( -> ...Bf2). Black has strong compensation. CPLX 4.2} 37. Rc1 $2 {[%emt 0:01:29] MISSDEEP-Re1-f1 400 (Re1-f1) (=33)} (37. Rf1 $19 Be3 38. b3) 37... Bf2 {[%emt 0:00:14] Weighted Error Value: White=0.38/Black=0.13 (very precise)} 0-1

[Event "26th Hit Open-A 2022"]
[Site "Nova Gorica"]
[Date "2022.09.19"]
[Round "6.10"]
[White "Acimovic, Vasja"]
[Black "Thybo, Jesper Sondergaard"]
[Result "0-1"]
[ECO "D02"]
[WhiteElo "2237"]
[BlackElo "2516"]
[Annotator "TA"]
[PlyCount "88"]
[EventDate "2022.09.16"]
[EventType "swiss"]
[EventCountry "SLO"]
[SourceTitle "playchess.com"]
[Source "ChessBase"]
[SourceQuality "1"]
[TimeControl "5400+30"]

{[%evp 11,88,0,0,0,9,-21,-19,-22,-10,-27,-26,-29,-17,-36,-9,-39,-14,-25,-25,-16,-13,-33,-3,-11,0,-23,-10,-151,-157,-232,-225,-232,-229,-222,-229,-214,-233,-220,-170,-170,-170,-170,-170,-170,-135,-134,-130,-129,-127,-125,-133,-154,-157,-341,-313,-473,-458,-502,-481,-947,-949,-949,-947,-938,-939,-924,-911,-906,-895,-910,-839,-1141,-1137,-1077,-1043,-1153,-1113,-6327,-6307]} 1. d4 {[%emt 0:03:28]} Nf6 {[%emt 0:00:25]} 2. Bf4 {[%emt 0:01:28]} d5 {[%emt 0:00:29]} 3. e3 {[%emt 0:00:10]} c5 {[%emt 0:00:38]} 4. c3 {[%emt 0:00:05]} Nc6 {[%emt 0:00:22]} 5. Nd2 {[%emt 0:00:06]} e6 {[%emt 0:00:37]} 6. Ngf3 {[%emt 0:00:18]} Nh5 $1 {[%emt 0:00:30][%mdl 4] 6...Nh5 is the modern continuation.} 7. Bg3 {[%emt 0:00:09] D02: 1 d4 d5 2 Nf3 sidelines, including 2...Nf6 3 g3 and 2...Nf6 3 Bf4.} g6 {[%emt 0:03:35] CPLX 2.4 9 (Nh5xg3) (=5)} 8. Bd3 {[%emt 0:05:15] CPLX 2.3 30 (Bg3-h4) (=15)} Nxg3 {[%emt 0:05:56] CPLX 2.5 2 (Qd8-b6) (=4)} 9. hxg3 {[%emt 0:00:30] RECAPT. The position is equal.} Qb6 {[%emt 0:00:14] CPLX 2.4 12 (c5-c4) (=6)} 10. Qc1 {[%emt 0:02:20] CPLX 2.4 17 (Ra1-b1) (=12)} Bg7 {[%emt 0:01:16] BESTDEEP} 11. O-O {[%emt 0:01:39] CPLX 2.4 3 (d4xc5) (=10)} O-O {[%emt 0:01:04] [#] BESTDEEP} 12. Rd1 $146 {[%emt 0:02:06] CPLX 2.5 19 (d4xc5) (=12)} ({Predecessor:} 12. dxc5 Qxc5 13. e4 dxe4 14. Nxe4 Qe7 15. Qe3 e5 16. Rad1 Be6 17. b3 Rad8 18. Bb5 {½-½ (27) Mueller,M (2258)-Dubiel,J (2413) Germany 2011}) 12... Rd8 {[%emt 0:10:46] CPLX 2.5 27 (Bc8-d7) (=7)} 13. Bf1 {[%emt 0:05:43] CPLX 2.5 30 (a2-a4) (=14)} Bd7 {[%emt 0:01:18][%cal Bc8d7,Bd7e8,Be8b5,Bb5e2][%mdl 32] CPLX 2.3 25 (h7-h5) (=9)} 14. Nb3 {[%emt 0:11:34] BESTDEEP} c4 {[%emt 0:10:57] CPLX 2.6} 15. Nc5 {[%emt 0:00:48] CPLX 2.4} Be8 {[%emt 0:00:08] BESTDEEP} 16. b3 {[%emt 0:03:06] CPLX 2.3} cxb3 {[%emt 0:00:19] CPLX 2.6 30 (Nc6-a5) (=10)} 17. axb3 {[%emt 0:00:41] RECAPT} a5 {[%emt 0:01:42] CPLX 2.5 11 (h7-h5) (=10)} 18. Qb1 {[%emt 0:10:05] CPLX 2.5 23 (Nc5-a4) (=10)} Qc7 {[%emt 0:01:36] BESTDEEP} 19. Bb5 {[%emt 0:01:54] RELBLUND 141 (Nc5-a4) (=20)} (19. Na4 $11) 19... Nxd4 $1 $17 {[%emt 0:03:01] EASY} 20. exd4 {[%emt 0:08:41] CPLX 4.0 75 (c3xd4) (=24)} (20. cxd4 $17 Bxb5 21. Rc1) 20... Bxb5 $19 {[%emt 0:01:04] EASY} 21. b4 {[%emt 0:01:45] CPLX 2.7 7 (Qb1-b2) (=23)} Be2 {[%emt 0:11:06] A strong pair of Bishops. BESTDEEP} 22. Re1 {[%emt 0:04:10] CPLX 3.3} Bxf3 {[%emt 0:00:15] CPLX 3.4} 23. gxf3 {[%emt 0:00:06] RECAPT} b6 {[%emt 0:02:58] EASY} 24. Na4 {[%emt 0:00:08] EASY} Bf8 {[%emt 0:03:45] CPLX 2.4 50 (a5xb4) (=9)} 25. b5 {[%emt 0:02:06] BESTDEEP} h5 {[%emt 0:01:33] CPLX 2.2} 26. Kg2 {[%emt 0:01:30] CPLX 2.3 0 (f3-f4) (=17)} Rac8 {[%emt 0:00:46] CPLX 2.4 0 (Kg8-g7) (=8)} 27. Qd3 {[%emt 0:01:39] CPLX 2.5 0 (f3-f4) (=16)} Rd6 {[%emt 0:01:16] CPLX 2.5 35 (Bf8-d6) (=9)} 28. g4 {[%emt 0:02:21] BESTDEEP} Qe7 {[%emt 0:02:40] BESTDEEP} 29. Qe3 {[%emt 0:01:26] Inhibits Bh6. CPLX 2.6} hxg4 {[%emt 0:02:54] BESTDEEP} 30. fxg4 {[%emt 0:00:06] RECAPT} Bg7 {[%emt 0:00:14] CPLX 2.4 0 (Qe7-d7) (=8)} 31. f4 {[%emt 0:03:15] CPLX 2.4 21 (Qe3-g3) (=15)} Qd7 {[%emt 0:00:58] BESTDEEP} 32. Reb1 $2 {[%emt 0:02:07] [#] Loses the game. CPLX 2.7 184 (Qe3-d3) (=21)} (32. Qd3 $17 {is a better defense.}) 32... g5 {[%emt 0:04:53] And now ...gxf4 would win. DEEPSTRONG=>BLUNDERREACT} 33. Qf3 {[%emt 0:04:36] CPLX 3.0 160 (Rb1-f1) (=26)} (33. Rf1 $142) 33... gxf4 {[%emt 0:00:54] CPLX 3.0=>BLUNDERREACT. Black is clearly winning.} 34. Qxf4 {[%emt 0:00:05] CPLX 3.4 44 (Rb1-e1) (=27)} e5 {[%emt 0:00:46] BESTDEEP} 35. dxe5 {[%emt 0:00:18] MISSDEEP-Qf4-f5 400 (Qf4-f5) (=40)} (35. Qf5 $142 Qxf5 36. gxf5) 35... Rc4 {[%emt 0:02:08] EASY} 36. Qxc4 {[%emt 0:00:10] BESTDEEP} dxc4 {[%emt 0:00:04] RECAPT} 37. exd6 {[%emt 0:00:06] EASY} Qxg4+ {[%emt 0:00:05] EASY} 38. Kf2 {[%emt 0:01:22] CPLX 4.7} Qf4+ {[%emt 0:00:11] CPLX 4.9} 39. Ke2 {[%emt 0:00:21] BESTDEEP} Qxd6 {[%emt 0:00:07] CPLX 5.1} 40. Rd1 {[%emt 0:03:13] CPLX 4.4 15 (Rb1-g1) (=34)} Qe5+ {[%emt 0:01:08] CPLX 4.8 71 (Qd6-h2) (=8)} 41. Kf3 {[%emt 0:00:11] CPLX 4.5 302 (Ke2-f1) (=42)} Qxb5 {[%emt 0:01:14] BESTDEEP} 42. Rd8+ {[%emt 0:00:29] CPLX 4.6 0 (Rd1-g1) (=41)} Kh7 {[%emt 0:00:03] EASY} 43. Rh1+ {[%emt 0:00:23] CPLX 5.0 110 (Ra1-d1) (=43)} Bh6 {[%emt 0:00:09] [#] ( -> ...Qc6+). CPLX 5.5} 44. Rd6 {[%emt 0:00:28] Prevents Qc6+. RELBLUND 400 (Rd8-d1) (=52)} Qf5+ {[%emt 0:00:23] Weighted Error Value: White=0.68/Black=0.08 (flawless)} 0-1

[Event "26th Hit Open-A 2022"]
[Site "Nova Gorica"]
[Date "2022.09.19"]
[Round "6.12"]
[White "Thavandiran, Shiyam"]
[Black "Schloffer, Jasmin-Denise"]
[Result "1-0"]
[ECO "C28"]
[WhiteElo "2363"]
[BlackElo "2127"]
[Annotator "TA"]
[PlyCount "63"]
[EventDate "2022.09.16"]
[EventType "swiss"]
[EventCountry "SLO"]
[SourceTitle "playchess.com"]
[Source "ChessBase"]
[SourceQuality "1"]
[TimeControl "5400+30"]

{[%evp 13,63,8,10,10,15,0,8,0,54,46,122,95,112,102,102,97,131,118,153,155,188,109,143,143,152,136,178,184,225,211,200,179,319,319,333,310,658,637,1022,714,712,712,683,677,658,639,814,781,779,762,626,521]} 1. e4 {[%emt 0:04:01]} e5 {[%emt 0:00:06]} 2. Bc4 {[%emt 0:00:25]} Nf6 {[%emt 0:00:07]} 3. d3 {[%emt 0:00:12]} Nc6 {[%emt 0:00:06]} 4. Nc3 {[%emt 0:00:10]} Na5 {[%emt 0:00:11]} 5. Nge2 {[%emt 0:00:45]} Nxc4 {[%emt 0:02:10]} 6. dxc4 {[%emt 0:00:10]} d6 {[%emt 0:00:31]} 7. O-O {[%emt 0:01:00]} Be7 {[%emt 0:01:13] CPLX 2.0} 8. b3 {[%emt 0:08:52] 8.Ng3 is setting a new trend. C28: Vienna Game: 2...Nf6 3 Bc4 Nc6.} Be6 {[%emt 0:04:41] CPLX 2.0 5 (0-0) (=3)} 9. f4 {[%emt 0:10:46] CPLX 2.0 15 (Ne2-g3) (=8)} exf4 {[%emt 0:03:41] BESTDEEP} 10. Nxf4 {[%emt 0:00:59] RECAPT 8 (Bc1xf4) (=8). The position is equal.} Qd7 {[%emt 0:04:03] [#] RELBLUND 54 (c7-c6) (=15)} (10... c6 $11) 11. h3 $146 {[%emt 0:06:42] BESTDEEP} ({Predecessor:} 11. Qd4 Ng4 12. Ncd5 Bf6 13. Nxf6+ Nxf6 14. Nd5 Bxd5 15. exd5 Qg4 16. Rf4 Qg6 17. Qe3+ {0-1 (26) Voros,G (2136)-Hlavina,L (2005) Slovakia 2017}) 11... O-O-O {[%emt 0:07:11] CPLX 2.4 76 (0-0) (=27)} ({Better is} 11... O-O $14) 12. Qd4 {[%emt 0:07:40] CPLX 2.5 27 (Bc1-e3) (=10)} c5 {[%emt 0:05:29] CPLX 2.7 17 (Kc8-b8) (=25)} 13. Qd3 {[%emt 0:01:12] CPLX 2.9 10 (Qd4-f2) (=10)} Rhg8 {[%emt 0:03:29] BESTDEEP} 14. Bb2 {[%emt 0:09:55] CPLX 2.6 5 (a2-a4) (=9)} Kb8 {[%emt 0:04:06] CPLX 2.5 34 (g7-g5) (=23)} 15. Rae1 {[%emt 0:12:25] CPLX 2.6 13 (Nc3-d5) (=10)} Ne8 {[%emt 0:08:42] CPLX 2.6 35 (h7-h6) (=25)} 16. Ncd5 {[%emt 0:05:23] CPLX 2.5 0 (Nf4xe6) (=9)} f6 {[%emt 0:08:57] MISSDEEP-Be7-h4 33 (Be7-h4) (=25)} 17. Bc3 {[%emt 0:12:27] CPLX 2.8 79 (Nd5xe7) (=16)} (17. Nxe7 $18 Qxe7 18. Nxe6 (18. Nd5 Qd7 $16) 18... Qxe6 19. e5 fxe5 {[#]} 20. Bxe5 $1 {[%mdl 512]} (20. Qxh7 Nf6 $11) (20. Rxe5 Qd7 $16)) 17... Nc7 {[%emt 0:01:42] CPLX 2.8 34 (Be6-f7) (=26)} 18. Ba5 $36 {[%emt 0:00:47][%mdl 2048] White has strong initiative. White has more active pieces. BESTDEEP} b6 {[%emt 0:01:00] EASY} 19. Bd2 {[%emt 0:00:52][%cal Ba5d2,Bd2f4,Bf4g3,Bg3d6][%mdl 32] CPLX 3.3 16 (Nf4xe6) (=14)} Bf7 {[%emt 0:04:29] CPLX 2.9 42 (Be6xd5) (=25)} 20. a4 {[%emt 0:00:29][%cal Ba2a4,Ba4a5][%mdl 32] CPLX 2.9} Ne6 {[%emt 0:04:00] CPLX 2.9 41 (Rd8-e8) (=27)} 21. a5 {[%emt 0:03:06] CPLX 2.9} Nxf4 {[%emt 0:02:03] EASY} 22. Bxf4 {[%emt 0:00:06] RECAPT} ({Resist} 22. Nxf4 $6 bxa5 23. Ra1 (23. Bxa5 Rc8 $16) 23... Rc8 24. Rxa5 Bd8 $16) 22... g5 {[%emt 0:01:30] CPLX 3.3 140 (b6xa5) (=32)} (22... bxa5 {keeps fighting.} 23. Ra1 Bxd5) 23. Bg3 $18 {[%emt 0:01:33] CPLX 3.6} Bxd5 {[%emt 0:00:51] CPLX 3.4 14 (b6xa5) (=31)} 24. exd5 {[%emt 0:00:06] RECAPT} (24. Qxd5 Qb7 25. Ra1 h5 26. axb6 axb6 $16) 24... h5 {[%emt 0:00:49] CPLX 2.5 348 (f6-f5) (=49)} (24... f5 25. Rxf5 (25. Qxf5 Qxf5 26. Rxf5 Rg7 $18) 25... Rgf8) 25. Qh7 {[%emt 0:01:59][%csl LRe7,LRh5] CPLX 2.7. White is clearly winning.} Rde8 {[%emt 0:04:16] [#] BEVAL 385 (Rg8-e8) (=66)} 26. Rxe7 $1 {[%emt 0:07:33][%mdl 512] EVAL 308 (Rf1xf6) (=25)} Qxe7 {[%emt 0:00:49] EVAL} 27. Qxe7 {[%emt 0:00:02][%mdl 64] Remove Defender. EVAL} Rxe7 {[%emt 0:00:06] RECAPT} 28. Bxd6+ {[%emt 0:00:04] KRR-KRB. EASY} Rc7 {[%emt 0:00:04] EASY} 29. Rxf6 {[%emt 0:00:14] Black must now prevent Rf7. CPLX 3.1} Rgg7 {[%emt 0:02:25] Prevents Rf7. EVAL 175 (Rg8-d8) (=62)} 30. a6 {[%emt 0:01:29][%cal Rf6f8] EVAL} Kc8 {[%emt 0:01:01] EVAL} 31. Bxc7 {[%emt 0:00:07] EVAL} Kxc7 {[%emt 0:00:22] RECAPT} 32. Kf2 {[%emt 0:00:11] Weighted Error Value: White=0.12 (very precise) /Black=0.53} 1-0